bitfinex/quotes_ETHUSD_20240822
["timestamp","ask_amount","ask_price","bid_price","bid_amount"]
[1724355871754,2.3991,2607.8,2607.4,3.83514]
[1724355871953,4.00810968,2607.8,2607.4,7.67029]
[1724355872192,2.3991,2607.8,2607.4,3.83514]
[1724355872393,2.3991,2607.8,2607.4,7.67029]
[1724355872589,2.3991,2607.8,2607.4,3.83514]
[1724355872755,2.3991,2607.8,2607.4,7.67028]
[1724355873352,2.3991,2607.8,2607.5,3.83508]
[1724355873600,2.3991,2607.8,2607.5,5.48808]
[1724355874414,2.3991,2607.8,2607.5,9.32309]
[1724355874822,2.3991,2607.8,2607.5,5.48801]
[1724355877575,2.3991,2607.8,2607.5,9.32302]
[1724355877926,2.3991,2607.8,2607.5,5.48801]
[1724355880629,2.3991,2607.8,2607.5,3.83501]
[1724355882156,2.3991,2607.8,2607.5,7.67003]
[1724355882766,2.3991,2607.8,2607.5,3.83501]
[1724355886156,2.3991,2607.8,2607.6,3.83487]
[1724355886358,4.07610968,2608.0,2607.7,3.83476]
[1724355886560,2.4671,2608.0,2607.7,3.83476]
[1724355888674,5.83942997,2608.2,2608.0,3.83435]
[1724355888675,1.60900968,2608.2,2608.0,3.83435]
[1724355888830,1.60900968,2608.3,2608.0,3.83425]
[1724355889034,1.60900968,2608.4,2608.2,3.83403]
[1724355889230,2.00527997,2608.5,2608.3,1.653]
[1724355889231,1.60900968,2608.5,2608.3,1.653]
[1724355890153,1.60900968,2608.5,2608.2,3.83403]
[1724355890581,1.60900968,2608.5,2608.1,4.0119]
[1724355890582,1.60900968,2608.5,2608.1,7.8461]
[1724355890869,2.4671,2608.4,2608.0,3.83425]
[1724355891428,2.4671,2608.4,2607.9,1.653]
[1724355891673,6.30095,2608.4,2607.9,1.653]
[1724355891877,3.83403,2608.3,2607.7,5.48768]
[1724355892045,5.44303968,2608.3,2607.7,7.391823]
[1724355892460,5.44303968,2608.3,2607.9,1.653]
[1724355892793,3.8341,2608.2,2607.7,5.48768]
[1724355893498,6.30116,2608.2,2607.7,5.48768]
[1724355893652,7.91016968,2608.2,2607.7,5.48768]
[1724355893852,5.44306968,2608.2,2607.6,7.36]
[1724355894195,3.83474,2607.8,2607.6,7.36]
[1724355894498,3.83472,2607.8,2607.6,7.36]
[1724355894695,2.4671,2607.7,2607.6,7.36]
[1724355895261,4.07610968,2607.9,2607.6,7.36]
[1724355895803,2.4671,2607.9,2607.6,7.36]
[1724355896094,2.4671,2607.9,2607.6,12.84794]
[1724355896256,4.07610968,2608.1,2607.7,3.83479]
[1724355897258,1.60900968,2608.2,2607.8,5.48764]
[1724355898258,4.07610968,2608.3,2608.0,1.653]
[1724355898570,2.4671,2608.3,2608.0,1.653]
[1724355898782,2.4671,2608.3,2607.9,3.83439]
[1724355898984,2.4671,2608.3,2607.9,5.002491]
[1724355899190,7.91002968,2608.3,2607.9,1.168101]
[1724355899494,1.60900968,2608.3,2608.0,1.653]
[1724355900389,1.60900968,2608.3,2607.8,5.48764]
[1724355900390,1.60900968,2608.1,2607.8,5.48764]
[1724355900702,1.60900968,2608.2,2607.8,6.490464]
[1724355900906,5.44291968,2608.3,2607.8,6.490464]
[1724355901200,1.60900968,2608.2,2607.8,5.48764]
[1724355901359,5.44291968,2608.3,2607.8,5.48764]
[1724355901562,1.60900968,2608.2,2607.8,5.48764]
[1724355901764,1.60900968,2608.2,2607.8,6.655764]
[1724355902365,1.60900968,2608.2,2608.0,1.653]
[1724355902574,1.60900968,2608.4,2608.0,5.48727]
[1724355902773,1.60900968,2608.5,2608.3,1.653]
[1724355902972,1.60900968,2608.4,2608.3,1.653]
[1724355903267,1.60900968,2608.5,2608.3,1.653]
[1724355903709,1.60900968,2608.4,2608.3,1.653]
[1724355903910,1.60900968,2608.4,2608.1,1.653]
[1724355904208,1.60625422,2608.3,2608.0,3.83434]
[1724355904408,1.60625422,2608.3,2608.0,5.1192164]
[1724355904606,1.60625422,2608.4,2608.1,3.8342]
[1724355904807,1.60625422,2608.4,2608.1,5.4872]
[1724355906767,1.60625422,2608.4,2608.0,5.1192164]
[1724355906971,1.60625422,2608.4,2608.0,3.83435]
[1724355907283,1.60625422,2608.4,2608.1,1.653]
[1724355909310,1.60625422,2608.5,2608.3,5.48691]
[1724355909495,1.60625422,2608.7,2608.4,6.25096]
[1724355909812,1.60625422,2608.7,2608.5,1.653]
[1724355910717,1.60625422,2608.8,2608.5,1.653]
[1724355912076,1.60625422,2608.8,2608.4,1.173787]
[1724355912275,3.83369,2608.5,2608.2,2.4249]
[1724355912593,5.43966422,2608.7,2608.3,0.791208]
[1724355912791,3.83355,2608.6,2608.3,1.653]
[1724355916084,3.83355,2608.6,2607.9,1.653]
[1724355916085,3.83383,2608.4,2607.9,1.653]
[1724355916362,3.83383,2608.4,2607.8,3.83464]
[1724355916363,3.83399,2608.3,2607.8,3.83464]
[1724355916494,9.27396422,2608.4,2607.9,5.48747]
[1724355917256,5.44008422,2608.4,2607.9,5.48747]
[1724355917551,5.44008422,2608.4,2607.9,9.32194]
[1724355917693,1.60625422,2608.4,2608.1,1.653]
[1724355918050,5.43980422,2608.6,2608.1,7.77069]
[1724355918249,1.60625422,2608.5,2608.1,7.77069]
[1724355918465,9.27338422,2608.6,2608.1,7.77069]
[1724355918687,1.60625422,2608.5,2608.1,7.77069]
[1724355918823,5.43990422,2608.5,2608.1,7.77069]
[1724355919257,5.43990422,2608.5,2608.1,3.9365]
[1724355919661,1.60625422,2608.5,2608.1,7.77064]
[1724355919882,1.60625422,2608.5,2608.1,8.65985924]
[1724355920023,1.60625422,2608.5,2608.3,1.653]
[1724355920454,5.43989422,2608.5,2608.1,8.65985924]
[1724355920655,5.43989422,2608.5,2608.1,2.2835]
[1724355920858,5.43989422,2608.5,2608.0,3.8343]
[1724355921160,2.4432,2608.3,2607.9,5.48738]
[1724355921358,2.4432,2608.3,2607.9,1.653]
[1724355922163,3.83413,2608.2,2607.9,1.653]
[1724355922467,3.83413,2608.2,2607.8,3.83464]
[1724355922649,3.83413,2608.2,2607.7,7.36]
[1724355922835,5.44038422,2608.2,2607.6,6.27986]
[1724355923028,5.44038422,2608.2,2607.8,3.83463]
[1724355923420,1.60625422,2608.2,2607.8,3.83463]
[1724355923626,1.60625422,2608.2,2607.9,3.83444]
[1724355923823,1.60625422,2608.3,2607.9,3.83444]
[1724355924080,1.60625422,2608.3,2608.0,3.83434]
[1724355924244,1.60625422,2608.4,2608.0,7.037837]
[1724355924639,1.60625422,2608.4,2608.0,6.27094]
[1724355925959,1.60625422,2608.3,2607.9,3.83445]
[1724355926182,3.83413,2608.2,2607.7,3.83478]
[1724355926390,5.44030422,2608.3,2607.5,5.4366]
[1724355926687,1.60625422,2608.2,2607.8,3.83457]
[1724355927432,3.87695422,2608.1,2607.8,3.83457]
[1724355927672,3.87695422,2608.1,2607.5,9.27158]
[1724355927846,2.2707,2608.1,2607.7,3.83478]
[1724355928233,2.2707,2608.1,2607.5,6.27158]
[1724355928234,3.83441,2608.0,2607.5,6.27158]
[1724355928431,7.71130422,2608.1,2607.5,8.018357]
[1724355928689,7.71130422,2608.1,2607.5,6.27167]
[1724355928690,1.60625422,2608.0,2607.5,6.27167]
[1724355929076,1.60625422,2607.9,2607.4,7.36]
[1724355929306,7.71167422,2607.8,2607.4,7.36]
[1724355929800,1.60625422,2607.7,2607.4,7.36]
[1724355930024,7.71167422,2607.8,2607.4,7.36]
[1724355930430,1.60625422,2607.6,2607.4,7.36]
[1724355930571,1.60625422,2607.6,2607.3,3.83528]
[1724355930768,1.60625422,2607.7,2607.3,3.83528]
[1724355931368,7.71167422,2607.8,2607.3,3.83528]
[1724355932712,7.71167422,2607.8,2607.3,7.67058]
[1724355933773,7.71167422,2607.8,2607.3,3.83528]
[1724355934817,6.10542,2607.8,2607.3,7.67058]
[1724355935114,2.2707,2607.8,2607.4,3.8352]
[1724355935614,1.60625422,2607.9,2607.4,6.3091]
[1724355935789,1.60625422,2607.9,2607.4,7.076148]
[1724355936110,5.44075422,2607.9,2607.4,7.076148]
[1724355936319,5.44075422,2607.9,2607.4,6.3091]
[1724355939985,5.44075422,2607.9,2607.4,3.8352]
[1724355940190,3.83466,2607.8,2607.3,3.83528]
[1724355940490,3.83466,2607.8,2607.1,3.83559]
[1724355940491,3.83501,2607.6,2607.1,3.83557]
[1724355940703,3.99325422,2607.7,2607.2,3.83545]
[1724355941026,1.60625422,2607.8,2607.4,3.83523]
[1724355941188,1.60625422,2607.9,2607.6,3.83493]
[1724355942432,5.44063422,2608.0,2607.6,3.83493]
[1724355942732,5.44063422,2608.0,2607.4,6.24469]
[1724355943026,5.44063422,2608.0,2607.5,3.83494]
[1724355943335,5.44063422,2608.0,2607.6,3.83493]
[1724355943836,5.44063422,2608.0,2607.5,3.83508]
[1724355943992,1.60625422,2608.0,2607.6,3.83486]
[1724355944338,1.60625422,2608.1,2607.5,6.17849]
[1724355944493,5.44041422,2608.2,2607.6,0.69390095]
[1724355944896,5.44041422,2608.2,2607.7,3.83472]
[1724355945355,9.27459422,2608.2,2607.7,3.83472]
[1724355945643,5.44041422,2608.2,2607.7,3.83472]
[1724355945792,5.44041422,2608.2,2607.7,4.9054311]
[1724355945989,9.27455422,2608.2,2607.7,4.9054311]
[1724355946791,3.83421,2608.1,2607.7,4.9054311]
[1724355947231,3.83421,2608.1,2607.7,1.0707111]
[1724355947498,3.83439,2608.0,2607.7,1.0707111]
[1724355948297,3.83425,2608.1,2607.7,1.0707111]
[1724355949538,3.83425,2608.1,2607.8,0.5599552]
[1724355949736,3.83425,2608.1,2607.7,1.0707111]
[1724355949939,3.83437,2608.0,2607.7,1.0707111]
[1724355950106,3.83437,2608.0,2607.6,0.69390095]
[1724355951608,3.83437,2608.0,2607.6,4.52882095]
[1724355952736,7.66884,2608.0,2607.6,0.69390095]
[1724355953208,5.44047422,2608.1,2607.8,2.4282]
[1724355953408,3.83422,2608.1,2607.8,2.4282]
[1724355953805,3.83424,2608.1,2607.8,2.4282]
[1724355957150,5.44049422,2608.1,2607.8,2.4282]
[1724355960362,5.44049422,2608.1,2607.8,2.50488711]
[1724355960363,1.60625422,2608.1,2607.8,2.50488711]
[1724355960655,1.60625422,2608.2,2608.0,1.653]
[1724355960858,1.60625422,2608.3,2608.0,1.653]
[1724355961178,1.60625422,2608.3,2608.0,4.0796]
[1724355961455,1.60625422,2608.2,2608.0,1.653]
[1724355962023,9.27454422,2608.2,2607.8,1.653]
[1724355962345,5.44038422,2608.2,2607.8,1.653]
[1724355962531,1.60625422,2608.1,2607.7,3.83468]
[1724355962737,3.83438,2608.0,2607.6,6.26153]
[1724355963256,5.44047422,2608.1,2607.6,7.17322528]
[1724355963463,3.83473,2607.8,2607.4,7.36]
[1724355963616,3.83486,2607.7,2607.4,7.36]
[1724355963847,6.27516,2607.6,2607.4,7.36]
[1724355964193,3.83525,2607.4,2607.0,2.2616]
[1724355964344,5.44150422,2607.4,2607.0,2.2616]
[1724355964542,3.83525,2607.4,2607.0,2.2616]
[1724355964992,5.44150422,2607.4,2606.9,7.36]
[1724355965150,7.88192422,2607.3,2606.9,7.36]
[1724355965948,2.4402,2607.3,2606.9,11.19588]
[1724355966147,2.4402,2607.3,2606.9,12.925232]
[1724355967367,2.4402,2607.3,2606.9,9.089352]
[1724355967583,6.27558,2607.3,2606.9,7.36]
[1724355968305,6.27558,2607.3,2606.7,2.2616]
[1724355968306,6.27558,2607.3,2606.7,6.09778]
[1724355968512,6.27558,2607.3,2606.8,3.8361]
[1724355968883,6.27558,2607.3,2606.8,7.6722]
[1724355969069,6.27558,2607.3,2606.8,3.8361]
[1724355969269,6.27558,2607.3,2606.8,7.67213]
[1724355969506,6.27558,2607.3,2606.8,3.83603]
[1724355969881,6.27558,2607.3,2606.8,7.67206]
[1724355970414,2.4402,2607.3,2606.9,3.83595]
[1724355971984,1.60625422,2607.5,2606.8,0.993366]
[1724355972300,1.60625422,2607.5,2607.1,3.83559]
[1724355972504,1.60625422,2607.6,2607.2,3.83545]
[1724355972704,1.60625422,2607.6,2607.3,3.83531]
[1724355972906,1.60625422,2607.7,2607.3,3.83531]
[1724355974872,1.60625422,2607.7,2607.3,6.977786]
[1724355976271,5.44113422,2607.7,2607.3,2.3754]
[1724355976473,5.44119422,2607.6,2607.1,6.21096]
[1724355977085,5.44119422,2607.6,2607.1,10.04653]
[1724355977372,5.44119422,2607.6,2607.1,6.21096]
[1724355977572,5.44119422,2607.6,2607.1,7.215641]
[1724355977784,5.44119422,2607.6,2607.1,11.051241]
[1724355977987,5.44119422,2607.6,2607.1,7.215641]
[1724355978510,5.44119422,2607.6,2607.1,11.051241]
[1724355978710,1.60625422,2607.7,2607.3,3.83529]
[1724355978938,5.44090422,2607.8,2607.4,0.383529]
[1724355979427,1.60625422,2607.8,2607.5,2.3754]
[1724355979634,1.60625422,2607.8,2607.6,0.6594139]
[1724355979790,1.60625422,2607.9,2607.6,0.6594139]
[1724355980504,5.44075422,2607.9,2607.5,6.21048]
[1724355981039,5.44075422,2607.9,2607.5,2.3754]
[1724355982329,1.60625422,2607.9,2607.5,6.21042]
[1724355982495,5.44061422,2608.0,2607.5,6.21048]
[1724355982848,5.44061422,2608.0,2607.6,1.0429209]
[1724355983635,5.44077422,2607.9,2607.4,3.83522]
[1724355983800,5.44077422,2607.9,2607.4,7.67037]
[1724355983992,5.44077422,2607.9,2607.4,7.6703]
[1724355984193,5.44077422,2607.9,2607.4,3.83515]
[1724355984595,5.44077422,2607.9,2607.4,4.62556643]
[1724355984944,1.60625422,2607.8,2607.4,4.62556643]
[1724355985141,5.44077422,2607.9,2607.4,4.62556643]
[1724355985429,1.60625422,2607.9,2607.5,3.83507]
[1724355985795,1.60625422,2607.9,2607.6,2.3079]
[1724355986136,5.44061422,2608.0,2607.6,2.3079]
[1724355986635,1.60625422,2608.0,2607.6,6.14282]
[1724355986834,1.60625422,2608.0,2607.6,7.21965864]
[1724355987951,5.44061422,2608.0,2607.6,7.21965864]
[1724355988634,1.60625422,2608.0,2607.6,11.05452864]
[1724355988840,1.60625422,2608.0,2607.7,3.83475]
[1724355989133,5.44046422,2608.1,2607.7,3.83475]
[1724355989318,1.60625422,2608.1,2607.7,3.83475]
[1724355989529,1.60625422,2608.2,2607.9,2.4451]
[1724355989831,1.60625422,2608.5,2608.2,3.83406]
[1724355990002,1.60625422,2608.5,2608.3,2.4451]
[1724355990419,2.00346613,2608.6,2608.3,2.4451]
[1724355990420,1.60625422,2608.6,2608.3,2.4451]
[1724355992042,5.43962422,2608.7,2608.3,2.4451]
[1724355992205,1.60625422,2608.6,2608.3,2.4451]
[1724355992948,5.43973422,2608.6,2608.3,2.4451]
[1724355993105,1.60625422,2608.6,2608.1,6.22822]
[1724355993306,5.43968422,2608.7,2608.2,4.31634481]
[1724355993532,5.43968422,2608.7,2608.2,3.83399]
[1724355993919,1.60625422,2608.6,2608.2,3.83399]
[1724355994123,5.43968422,2608.7,2608.2,3.83399]
[1724355995652,1.60625422,2608.7,2608.3,2.2912]
[1724355995856,3.3115075,2609.5,2608.3,2.2912]
[1724355995857,2.40290794,2609.9,2609.6,3.832]
[1724355996007,2.80339259,2610.1,2609.4,3.8322]
[1724355996008,4.00534665,2610.0,2609.4,3.8322]
[1724355996203,1.88277797,2610.0,2609.2,5.2912]
[1724355996443,3.83172,2609.8,2609.2,2.2912]
[1724355996603,3.83195,2609.7,2609.2,2.2912]
[1724355996807,6.15225,2609.7,2608.8,6.12427]
[1724355997604,6.15225,2609.7,2609.0,3.83288]
[1724355997819,2.3203,2609.7,2609.1,3.83273]
[1724355998264,2.3203,2609.7,2609.2,3.83258]
[1724355998448,2.3203,2609.7,2609.2,4.599126]
[1724355999037,2.3203,2609.7,2609.2,4.599036]
[1724355999435,2.3203,2609.7,2609.2,8.431526]
[1724355999741,2.3203,2609.7,2609.3,3.83242]
[1724356001536,2.3203,2609.7,2609.2,7.66497]
[1724356001731,2.3203,2609.7,2609.3,3.83242]
[1724356003558,2.3203,2609.7,2609.4,3.83224]
[1724356005284,2.3203,2609.7,2609.6,3.832]
[1724356005488,2.4475,2609.9,2609.6,3.832]
[1724356005717,3.83102,2610.3,2609.6,3.832]
[1724356005718,2.4475,2610.2,2609.7,3.83177]
[1724356005992,3.075352,2610.2,2609.8,3.83158]
[1724356008269,2.4475,2610.2,2609.8,3.83158]
[1724356008462,2.4475,2610.2,2609.9,3.83148]
[1724356009125,2.3536,2610.5,2610.0,3.83141]
[1724356009487,2.3536,2610.5,2610.0,7.66274]
[1724356009799,2.3536,2610.5,2610.0,7.66266]
[1724356009997,2.972014,2610.5,2610.1,3.8312]
[1724356010212,2.972014,2610.5,2610.0,3.83133]
[1724356010385,2.972014,2610.5,2610.0,3.83132]
[1724356010586,2.972014,2610.5,2610.1,3.83124]
[1724356011012,2.972014,2610.5,2610.0,3.83132]
[1724356011214,2.4122,2610.7,2610.2,3.83099]
[1724356012322,2.4122,2610.7,2610.3,3.83097]
[1724356012525,3.83031,2610.8,2610.3,3.83097]
[1724356012713,3.8301,2610.9,2610.4,3.83081]
[1724356012888,0.924222,2610.9,2610.5,3.83067]
[1724356013332,0.924222,2610.9,2610.5,3.8306]
[1724356015340,0.924222,2610.9,2610.4,7.66149]
[1724356015630,0.924222,2610.9,2610.5,3.83065]
[1724356016820,0.7166402,2610.8,2610.2,3.83101]
[1724356017017,6.24416,2610.7,2610.1,3.83122]
[1724356017223,10.07463,2610.7,2610.1,3.83122]
[1724356017525,6.24416,2610.7,2610.1,3.83122]
[1724356017733,7.22969123,2610.7,2610.1,3.83122]
[1724356018037,7.22969123,2610.7,2610.0,11.19132]
[1724356018038,7.22969123,2610.7,2610.2,3.83111]
[1724356018588,3.83054,2610.6,2610.0,11.19132]
[1724356018788,7.22969123,2610.7,2610.1,3.83119]
[1724356019510,11.06019123,2610.7,2610.1,3.83119]
[1724356019842,7.22969123,2610.7,2610.2,3.83108]
[1724356020191,11.06017123,2610.7,2610.2,3.83108]
[1724356020536,7.22969123,2610.7,2610.2,3.83108]
[1724356020734,11.06016123,2610.7,2610.2,3.83108]
[1724356020936,7.22969123,2610.7,2610.2,3.83108]
[1724356021117,3.39923123,2610.7,2610.3,3.83096]
[1724356021318,3.39923123,2610.7,2610.2,3.83103]
[1724356021749,3.39923123,2610.7,2610.3,3.83089]
[1724356022303,2.4137,2610.9,2610.5,3.83067]
[1724356024536,6.2438,2610.9,2610.4,3.83082]
[1724356024837,2.3324,2610.7,2610.3,3.83097]
[1724356025038,6.1628,2610.7,2610.2,3.83111]
[1724356025239,6.1628,2610.7,2610.1,3.83116]
[1724356025240,3.83056,2610.6,2610.1,3.83116]
[1724356025445,4.829864,2610.6,2610.1,7.66235]
[1724356025618,4.829864,2610.6,2610.1,3.83116]
[1724356026006,4.829864,2610.6,2610.1,7.66234]
[1724356026356,4.829864,2610.6,2610.1,3.83116]
[1724356026504,0.999304,2610.6,2610.2,3.8311]
[1724356028257,6.16279,2610.7,2610.1,3.83116]
[1724356028258,2.3324,2610.7,2610.3,3.83094]
[1724356028401,2.3324,2610.7,2610.4,3.83073]
[1724356028917,7.66008,2611.0,2610.5,3.83068]
[1724356029225,6.14609,2610.9,2610.3,7.66183]
[1724356029437,3.83025,2610.8,2610.3,7.66178]
[1724356029620,3.83025,2610.8,2610.3,3.83089]
[1724356030021,6.1461,2610.9,2610.4,3.83082]
[1724356030503,3.83025,2610.8,2610.4,3.83082]
[1724356030702,3.83025,2610.8,2610.3,3.83097]
[1724356031349,7.6606,2610.8,2610.3,3.83097]
[1724356031548,3.83025,2610.8,2610.3,3.83097]
[1724356031954,7.08226343,2610.9,2610.3,3.8309]
[1724356032155,7.08226343,2610.9,2610.4,3.83081]
[1724356035494,3.82985,2611.1,2610.7,3.83038]
[1724356035790,2.4319,2611.2,2610.7,3.83038]
[1724356035938,6.26121,2611.5,2611.0,3.82994]
[1724356036142,10.09051,2611.5,2610.9,3.83001]
[1724356036355,7.270241,2611.5,2610.9,3.83]
[1724356036974,11.099531,2611.5,2610.9,3.83]
[1724356037277,3.82939,2611.4,2610.9,3.83]
[1724356037456,3.82953,2611.3,2610.7,6.17657]
[1724356037818,3.82953,2611.3,2610.8,3.83022]
[1724356039471,11.099551,2611.5,2610.9,3.83004]
[1724356039758,7.270241,2611.5,2610.9,3.83004]
[1724356040321,3.82944,2611.4,2610.9,3.83004]
[1724356040518,3.82953,2611.3,2610.7,6.17655]
[1724356041254,7.65912,2611.3,2610.7,6.17655]
[1724356041617,3.8298,2611.1,2610.7,2.3463]
[1724356041817,3.8298,2611.1,2610.4,6.2896]
[1724356041818,6.1666,2611.1,2610.4,6.2896]
[1724356042122,6.1666,2611.1,2610.5,3.83061]
[1724356042123,3.83002,2611.0,2610.5,3.83061]
[1724356043464,3.83032,2610.8,2610.3,7.36]
[1724356043799,6.17336,2610.7,2610.3,7.36]
[1724356043979,2.3429,2610.7,2610.3,7.36]
[1724356044183,2.3429,2610.7,2610.3,11.19093]
[1724356044686,6.17299,2610.9,2610.4,3.83081]
[1724356044871,6.17299,2610.9,2610.4,3.83076]
[1724356045189,6.17299,2610.9,2610.4,7.66151]
[1724356045554,6.17299,2610.9,2610.4,3.83075]
[1724356045951,6.17299,2610.9,2610.4,7.6615]
[1724356046375,6.17299,2610.9,2610.4,3.83075]
[1724356046855,3.83009,2610.9,2610.5,3.83067]
[1724356047008,3.82995,2611.0,2610.5,3.83067]
[1724356047703,2.3631,2610.8,2610.4,3.83074]
[1724356048074,2.3631,2610.8,2610.4,7.6615]
[1724356048280,2.3631,2610.8,2610.5,3.83064]
[1724356049091,2.3631,2611.0,2610.6,3.83052]
[1724356049399,3.82983,2611.1,2610.6,3.83052]
[1724356049572,0.69312043,2611.0,2610.6,3.83052]
[1724356049773,4.52307043,2611.0,2610.6,3.83052]
[1724356049965,4.52307043,2611.0,2610.5,3.83067]
[1724356050165,6.52654709,2611.0,2610.5,3.83067]
[1724356050578,4.52307043,2611.0,2610.5,3.83067]
[1724356050781,0.65265471,2610.9,2610.5,3.83067]
[1724356051924,0.65265471,2610.9,2610.6,3.8305]
[1724356052111,6.19286,2611.2,2610.6,3.8305]
[1724356052112,5.83327666,2611.1,2610.6,3.8305]
[1724356052312,2.00347666,2611.0,2610.6,3.8305]
[1724356053031,2.4169,2610.9,2610.4,3.83071]
[1724356053332,4.42037666,2610.9,2610.5,3.83061]
[1724356053484,5.48582753,2610.9,2610.5,3.83061]
[1724356053986,5.48582753,2610.9,2610.1,6.30053]
[1724356054192,2.00347666,2610.6,2610.0,11.19141]
[1724356054496,2.00347666,2610.5,2610.2,3.83112]
[1724356054703,2.00347666,2610.6,2610.2,3.83112]
[1724356054917,0.63672056,2610.5,2610.2,3.83112]
[1724356055106,0.63672056,2610.5,2610.1,3.83124]
[1724356057130,2.00347666,2610.5,2610.2,3.83104]
[1724356057423,4.42037666,2610.7,2610.3,3.83086]
[1724356057594,4.42037666,2610.7,2610.4,3.8308]
[1724356058219,4.42037666,2610.7,2610.3,3.83084]
[1724356058411,2.00347666,2610.7,2610.5,7.66126]
[1724356058614,2.00347666,2610.8,2610.5,7.6612]
[1724356059423,2.00347666,2610.9,2610.5,3.8306]
[1724356059604,2.00347666,2610.9,2610.7,3.83038]
[1724356060364,2.00347666,2611.0,2610.7,3.83029]
[1724356060512,2.00347666,2611.1,2610.7,7.66058]
[1724356060702,2.00347666,2611.0,2610.7,3.83029]
[1724356061208,2.00347666,2611.1,2610.7,3.83031]
[1724356063324,2.00347666,2611.1,2610.7,3.8303]
[1724356063523,2.00494512,2611.1,2610.7,3.8303]
[1724356063723,2.00494512,2611.1,2610.7,7.6606]
[1724356063926,2.00494512,2611.1,2610.7,4.59636]
[1724356064237,2.00494512,2611.1,2610.8,2.4262]
[1724356064436,2.00494512,2611.2,2610.8,2.4262]
[1724356064636,2.00494512,2611.2,2610.9,3.83009]
[1724356066524,2.00494512,2611.2,2610.8,2.4262]
[1724356066927,2.00494512,2611.2,2610.8,6.25642]
[1724356067744,3.82954,2611.3,2610.8,6.25642]
[1724356067745,2.00494512,2611.3,2610.9,3.83006]
[1724356068055,2.00494512,2611.3,2611.0,3.82988]
[1724356068261,2.00598725,2611.4,2611.2,2.472]
[1724356068464,2.00598725,2611.5,2611.2,6.30164]
[1724356068616,3.82917,2611.6,2611.2,6.30164]
[1724356068617,5.83515725,2611.6,2611.2,6.30164]
[1724356068962,2.00598725,2611.7,2611.3,3.8295]
[1724356069415,2.00598725,2611.7,2611.4,3.82932]
[1724356070452,6.18902776,2611.9,2611.4,3.82932]
[1724356071465,3.83062776,2611.9,2611.4,3.82932]
[1724356074666,3.82878,2611.8,2611.4,3.82932]
[1724356077293,2.00486445,2611.8,2611.4,3.82929]
[1724356077578,5.83364445,2611.8,2611.5,0.382929]
[1724356077738,3.82878,2611.8,2611.5,2.2927]
[1724356078757,5.83541221,2611.9,2611.5,2.2927]
[1724356079771,3.8288,2611.8,2611.4,3.82927]
[1724356079963,3.82893,2611.7,2611.3,2.4155]
[1724356080286,3.82915,2611.6,2611.1,13.60522]
[1724356080583,3.82915,2611.6,2611.1,15.121004]
[1724356081168,3.82915,2611.6,2611.2,3.82965]
[1724356081364,3.82893,2611.7,2611.2,3.82965]
[1724356081590,3.82893,2611.7,2611.2,5.7247244]
[1724356081790,3.82893,2611.7,2611.2,5.7246244]
[1724356082192,3.82893,2611.7,2611.3,3.8295]
[1724356082793,4.37166207,2611.8,2611.4,3.82932]
[1724356083066,5.83359983,2611.9,2611.4,3.82932]
[1724356083472,5.83359983,2611.9,2611.5,6.24459]
[1724356083473,2.00487983,2611.9,2611.5,6.24459]
[1724356083956,0.00191776,2611.9,2611.6,3.82898]
[1724356084680,0.00191776,2611.9,2611.7,3.82889]
[1724356085711,0.00191776,2611.9,2611.8,3.82877]
[1724356086162,0.00191776,2611.9,2611.7,3.82891]
[1724356086365,0.00191776,2611.9,2611.7,4.836249]
[1724356087084,0.00191776,2611.9,2611.8,2.4114]
[1724356088211,0.00191776,2611.9,2611.8,6.24017]
[1724356094545,0.00191776,2611.9,2611.8,2.4114]
[1724356095658,0.00191776,2611.9,2611.7,1.007339]
[1724356095790,3.83062776,2611.9,2611.4,7.26333944]
[1724356095989,3.83062776,2611.9,2611.4,6.30795]
[1724356096217,3.83062776,2611.9,2611.5,3.82918]
[1724356096809,0.00191776,2611.9,2611.5,3.82918]
[1724356097012,3.83055776,2611.9,2611.5,3.82918]
[1724356097212,3.83055776,2611.9,2611.6,1.013713]
[1724356097411,0.00191776,2611.9,2611.6,1.013713]
[1724356099529,0.00191776,2611.9,2611.6,4.842673]
[1724356099735,0.00191776,2611.9,2611.7,3.82881]
[1724356101581,0.00191776,2611.9,2611.6,4.842673]
[1724356101739,3.83057776,2611.9,2611.6,1.013713]
[1724356101941,2.4312,2611.8,2611.5,3.82921]
[1724356102144,2.4312,2611.8,2611.3,3.82947]
[1724356102365,3.82892,2611.7,2611.3,3.82947]
[1724356103180,6.26,2611.8,2611.3,3.82947]
[1724356103977,6.26,2611.8,2611.3,7.65891]
[1724356104276,6.26,2611.8,2611.3,8.88161604]
[1724356104488,6.26,2611.8,2611.4,3.82934]
[1724356105465,2.4312,2611.8,2611.4,3.82934]
[1724356108774,2.4312,2611.8,2611.5,3.82918]
[1724356109676,2.4312,2611.8,2611.4,3.82934]
[1724356109677,2.4312,2611.8,2611.6,3.82904]
[1724356109880,2.4312,2611.8,2611.6,4.594878]
[1724356110265,2.00595673,2611.9,2611.6,4.594878]
[1724356111373,2.00595673,2611.9,2611.6,3.82904]
[1724356111566,2.00905992,2611.9,2611.6,3.82904]
[1724356112475,2.00714216,2611.8,2611.7,3.82892]
[1724356112680,0.00191776,2611.9,2611.8,3.82877]
[1724356113496,2.00905992,2611.9,2611.8,3.82877]
[1724356113900,0.00191776,2611.9,2611.8,3.82877]
[1724356114259,2.00905992,2611.9,2611.7,5.47791]
[1724356115090,2.00905992,2611.9,2611.7,3.82891]
[1724356115797,2.00905992,2611.9,2611.8,3.82877]
[1724356116467,2.01080492,2611.9,2611.8,3.82877]
[1724356116668,0.00191776,2611.9,2611.8,3.82877]
[1724356117596,0.00191776,2611.9,2611.8,7.65754]
[1724356117987,0.00191776,2611.9,2611.8,3.82877]
[1724356120269,0.00191776,2611.9,2611.7,4.759515]
[1724356120470,0.00191776,2611.9,2611.8,3.82877]